bitfinex-derivatives/quotes_ETHF0:USTF0_20241230
["timestamp","ask_amount","ask_price","bid_price","bid_amount"]
[1735568959908,0.29881,3352.1,3352.0,12.72156384]
[1735568960816,0.29881,3352.1,3352.0,13.02038384]
[1735568961016,0.29881,3352.1,3352.0,6.33533268]
[1735568961215,2.3455848,3352.5,3352.0,8.30490664]
[1735568961414,0.2988,3352.2,3352.1,0.2988]
[1735568962514,0.2988,3352.2,3352.1,4.63324361]
[1735568963615,0.2988,3352.2,3352.1,4.33444361]
[1735568963916,0.2988,3352.2,3352.1,4.63325361]
[1735568965609,0.2988,3352.2,3352.1,4.98993294]
[1735568966218,0.2988,3352.3,3352.1,4.98992294]
[1735568966511,0.2988,3352.3,3352.2,1.3711]
[1735568967319,0.2988,3352.3,3352.2,6.06222294]
[1735568967719,0.2988,3352.3,3352.2,6.36102294]
[1735568968117,2.5512,3352.7,3352.2,6.36102294]
[1735568968318,0.29879,3352.4,3352.2,6.36102294]
[1735568968514,0.29879,3352.4,3352.3,1.3406]
[1735568970525,0.29877,3352.6,3352.4,0.29878]
[1735568970821,2.84996,3352.7,3352.5,0.29877]
[1735568971014,2.5512,3352.7,3352.5,0.29877]
[1735568971222,0.29876,3352.6,3352.5,0.29877]
[1735568971418,2.3455848,3352.9,3352.3,4.5484]
[1735568971624,2.3455848,3352.9,3352.7,0.29875]
[1735568971625,0.29875,3352.8,3352.7,0.29875]
[1735568971923,2.6443248,3352.9,3352.7,0.29875]
[1735568972123,2.6443248,3352.9,3352.6,0.29876]
[1735568972124,0.29875,3352.8,3352.6,0.29876]
[1735568972822,0.29875,3352.8,3352.7,0.29875]
[1735568973022,0.29875,3352.8,3352.6,0.29876]
[1735568973624,0.29876,3352.7,3352.5,0.29876]
[1735568973820,0.29875,3352.8,3352.6,0.29876]
[1735568974314,0.29875,3352.8,3352.7,1.3865]
[1735568975422,0.74684,3353.0,3352.4,4.98990294]
[1735568975624,0.29877,3352.5,3352.4,4.69112294]
[1735568977022,0.29878,3352.4,3352.3,3.2078]
[1735568977223,2.90178,3352.4,3352.3,3.2078]
[1735568979121,0.29881,3352.1,3352.0,4.69112294]
[1735568980424,0.74698,3352.3,3351.9,3.2078]
[1735568980625,0.29882,3352.0,3351.9,3.2078]
[1735568988233,0.29882,3352.0,3351.9,4.84123]
[1735568988933,0.29882,3352.0,3351.9,9.53235294]
[1735568989336,0.29882,3352.0,3351.9,8.19775294]
[1735568989634,0.29882,3352.0,3351.9,7.89892294]
[1735568990035,0.29882,3352.0,3351.9,8.19775294]
[1735568990430,0.29882,3352.0,3351.9,3.50663]
[1735568990932,0.29882,3352.1,3352.0,0.29881]
[1735568992136,0.29882,3352.0,3351.9,8.19774294]
[1735568995532,0.29882,3352.0,3351.9,7.89892294]
[1735568996037,0.29882,3352.0,3351.9,7.83923547]
[1735568996437,0.29882,3352.0,3351.9,7.54040547]
[1735568996937,3.34998,3352.4,3351.9,7.54040547]
[1735568997139,0.29881,3352.1,3352.0,0.2988]
[1735568997333,1.339,3352.4,3352.0,2.26839396]
[1735568997531,3.6986848,3352.7,3352.3,5.47619396]
[1735568997735,0.29878,3352.5,3352.4,0.29878]
[1735568998035,0.29878,3352.5,3352.3,3.2078]
[1735568998036,1.3244,3352.6,3352.5,0.29877]
[1735568998232,1.3244,3352.6,3352.3,3.2078]
[1735568998438,1.3244,3352.6,3352.4,4.69294098]
[1735568998630,1.3531,3352.7,3352.4,4.69294098]
[1735568998836,3.6699848,3352.9,3352.8,0.29875]
[1735568999035,3.6699848,3352.9,3352.8,3.2078]
[1735568999036,3.9687248,3352.9,3352.8,3.2078]
[1735568999341,3.9687248,3352.9,3352.8,3.50655]
[1735568999342,3.6699848,3352.9,3352.8,3.50655]
[1735568999535,3.6699848,3352.9,3352.8,3.2078]
[1735568999732,2.3455848,3352.9,3352.8,3.2078]
[1735569000045,0.29874,3352.9,3352.8,7.90074098]
[1735569000247,2.6443048,3353.2,3353.0,0.29872]
[1735569000537,0.29874,3352.9,3352.8,4.69294098]
[1735569000935,1.2565,3353.1,3352.8,4.69294098]
[1735569001237,3.50654,3352.9,3352.8,4.69294098]
[1735569001433,5.47619396,3352.9,3351.6,5.8475]
[1735569001637,2.26839396,3352.2,3351.6,5.8475]
[1735569001833,2.26839396,3352.2,3351.8,14.05278612]
[1735569002033,2.93221,3352.1,3351.8,14.35161612]
[1735569002234,2.6334,3352.1,3351.8,14.05278612]
[1735569002440,0.29883,3351.9,3351.8,14.05278612]
[1735569002639,2.56722396,3351.9,3351.8,14.05278612]
[1735569003338,6.235217,3351.9,3351.1,3.2078]
[1735569003541,0.29887,3351.5,3351.1,3.2078]
[1735569003841,6.235217,3351.9,3351.2,0.29888]
[1735569004045,0.29887,3351.4,3351.2,0.29888]
[1735569004433,0.29887,3351.4,3351.1,3.2078]
[1735569004639,0.29887,3351.4,3351.1,3.50669]
[1735569004839,2.26839396,3351.3,3351.0,1.3168]
[1735569005145,0.29888,3351.3,3351.0,1.6157]
[1735569005344,1.2944,3351.4,3351.0,1.3168]
[1735569005543,4.61375116,3351.5,3351.1,3.2078]
[1735569005746,2.3453572,3351.5,3351.4,0.29887]
[1735569006342,4.96646214,3351.6,3351.4,0.29887]
[1735569006642,6.9360061,3351.6,3351.1,3.2078]
[1735569006839,0.29889,3351.2,3351.1,3.2078]
[1735569007046,0.2989,3351.1,3351.0,1.3168]
[1735569008145,1.2767,3351.5,3351.0,1.3168]
[1735569008450,1.2767,3351.5,3351.3,0.29887]
[1735569008451,0.29887,3351.5,3351.3,0.29887]
[1735569008646,4.66761214,3351.6,3351.1,3.2078]
[1735569008842,2.34421259,3351.5,3351.1,3.2078]
[1735569009045,0.29889,3351.2,3351.1,3.2078]
[1735569009248,0.2989,3351.1,3351.0,1.6157]
[1735569009442,0.2989,3351.1,3351.0,1.3168]
[1735569009647,2.34421259,3351.5,3351.0,1.3168]
[1735569009848,0.2989,3351.1,3351.0,1.3168]
[1735569010547,0.29891,3351.0,3350.9,0.29891]
[1735569010747,1.243,3351.3,3350.8,1.2793]
[1735569010943,2.34421259,3351.4,3351.3,0.29888]
[1735569011552,0.29888,3351.3,3351.2,1.62998]
[1735569011748,2.64308259,3351.4,3351.3,0.29888]
[1735569011950,2.34421259,3351.4,3351.1,3.2078]
[1735569012148,2.56728396,3351.2,3351.1,3.2078]
[1735569012654,0.29889,3351.2,3351.1,3.2078]
[1735569013852,3.51939396,3351.2,3350.6,3.2078]
[1735569014053,0.29896,3350.4,3350.3,1.3409]
[1735569014359,5.47619396,3350.9,3350.3,1.3409]
[1735569014360,0.29895,3350.5,3350.3,1.63986]
[1735569014652,1.2897,3350.8,3350.3,1.3409]
[1735569014956,0.29893,3350.7,3350.4,3.2078]
[1735569015153,1.58863,3350.8,3350.6,0.29894]
[1735569015353,2.34421259,3351.4,3350.5,18.9]
[1735569015554,4.66761214,3351.2,3351.1,0.29889]
[1735569015852,4.66761214,3351.2,3351.1,1.55899]
[1735569016053,0.29885,3351.7,3351.1,1.2601]
[1735569016246,0.29885,3351.7,3351.6,3.2078]
[1735569016951,0.29885,3351.7,3351.6,3.50665]
[1735569017253,0.29885,3351.7,3351.6,3.2078]
[1735569017858,0.29888,3351.3,3351.2,3.2078]
[1735569018454,0.29885,3351.7,3351.2,3.2078]
[1735569018646,0.29885,3351.7,3351.6,3.2078]
[1735569019057,0.29888,3351.3,3351.2,3.2078]
[1735569019352,1.3028,3351.6,3350.5,5.7541]
[1735569019552,1.3239,3351.5,3350.6,3.2078]
[1735569019752,0.29892,3350.9,3350.6,3.50674]
[1735569020350,1.3239,3351.5,3350.6,3.2078]
[1735569020351,0.29891,3351.0,3350.6,3.2078]
[1735569020549,0.29887,3351.4,3350.7,0.29893]
[1735569020749,2.07108,3351.5,3350.6,3.2078]
[1735569020959,0.2989,3351.1,3350.8,0.29892]
[1735569021257,1.3239,3351.5,3351.0,3.2078]
[1735569021457,2.34021475,3351.3,3351.2,0.29888]
[1735569021654,2.34021475,3351.3,3351.1,1.3271]
[1735569021858,2.34021475,3351.3,3351.2,0.29889]
[1735569022361,2.63909475,3351.3,3351.1,1.626]
[1735569022554,0.29888,3351.4,3351.2,0.29889]
[1735569022755,1.3239,3351.5,3351.0,3.2078]
[1735569022960,0.2989,3351.1,3351.0,3.2078]
[1735569024751,2.63910475,3351.3,3351.0,3.2078]
[1735569024955,2.34021475,3351.3,3351.1,0.2989]
[1735569025258,2.63909475,3351.3,3351.2,1.2379]
[1735569025451,2.34021475,3351.3,3351.0,3.2078]
[1735569025652,0.2989,3351.1,3351.0,3.2078]
[1735569026662,0.29893,3350.9,3350.7,1.2655]
[1735569026960,0.29894,3350.8,3350.7,1.2655]
[1735569027458,0.29896,3350.6,3350.5,3.2078]
[1735569028654,1.2231,3350.7,3350.1,3.2078]
[1735569029060,0.299,3350.2,3350.1,3.2078]
[1735569029262,5.47619396,3350.4,3349.4,14.92300119]
[1735569029457,2.26839396,3350.0,3349.4,3.2078]
[1735569029655,0.29905,3349.7,3349.4,3.50686]
[1735569029865,2.5054,3350.1,3349.4,3.50686]
[1735569029866,0.29906,3349.5,3349.4,3.2078]
[1735569030562,2.5054,3350.1,3349.4,3.2078]
[1735569030766,6.29540475,3350.8,3349.8,5.47619396]
[1735569030962,5.54801475,3350.8,3349.9,1.2457]
[1735569031161,4.6804295,3350.4,3349.9,1.2457]
[1735569031461,0.29899,3350.3,3349.9,1.2457]
[1735569031763,4.9794095,3350.4,3350.1,0.299]
[1735569032059,4.9794095,3350.4,3349.9,1.2457]
[1735569032060,0.29902,3350.0,3349.9,1.2457]
[1735569032359,0.29906,3349.5,3349.4,3.2078]
[1735569033059,0.29906,3349.5,3349.0,9.3613944]
[1735569033060,0.2991,3349.1,3349.0,9.3613944]
[1735569033264,3.5069,3349.1,3349.0,9.3613944]
[1735569033656,6.72719396,3349.1,3347.8,1.28692937]
[1735569033962,6.72719396,3349.1,3348.2,1.2161]
[1735569033963,0.29912,3348.9,3348.2,1.2161]
[1735569034261,1.3212,3349.6,3349.0,0.29911]
[1735569034461,4.529,3349.6,3349.1,2.4496]
[1735569034651,2.56748396,3349.2,3349.1,1.2161]
[1735569034857,2.56748396,3349.2,3348.7,1.2335]
[1735569034858,0.29912,3348.8,3348.7,1.2335]
[1735569035066,3.50692,3348.8,3348.7,1.2161]
[1735569035264,0.29916,3348.4,3348.2,0.29917]
[1735569035459,0.29916,3348.4,3348.1,1.2335]
[1735569035460,3.2078,3348.8,3348.1,2.4496]
[1735569035659,0.29914,3348.7,3348.5,0.29914]
[1735569035971,0.29914,3348.7,3348.1,2.4496]
[1735569035972,1.251,3349.2,3348.7,0.29913]
[1735569036267,0.29912,3348.9,3348.8,2.74872]
[1735569036860,0.29912,3348.9,3348.8,2.4496]
[1735569037061,0.29912,3348.9,3348.8,2.74872]
[1735569037360,0.29912,3348.9,3348.8,2.4496]
[1735569037760,0.29912,3348.9,3348.5,18.9]
[1735569037761,0.29914,3348.6,3348.5,18.9]
[1735569037962,0.29915,3348.5,3348.4,3.2078]
[1735569038565,0.29915,3348.5,3348.3,2.5768]
[1735569038764,0.2992,3347.9,3347.8,1.2926]
[1735569038965,0.2992,3347.9,3347.8,1.59181]
[1735569039266,3.01630396,3348.4,3347.5,0.29923]
[1735569039267,0.29923,3347.6,3347.5,0.29923]
[1735569039460,0.29924,3347.6,3347.4,4.74525]
[1735569039665,5.47619396,3348.1,3347.4,4.446]
[1735569039869,0.29921,3347.9,3347.5,0.29924]
[1735569040068,5.47619396,3348.1,3347.7,0.29922]
[1735569040069,0.2992,3348.0,3347.7,0.29922]
[1735569040266,0.29921,3347.9,3347.7,0.29922]
[1735569040466,0.29923,3347.6,3347.5,1.3349]
[1735569041563,0.29918,3348.2,3348.1,0.29919]
[1735569041862,0.29918,3348.2,3347.5,1.3349]
[1735569041863,3.2078,3348.5,3348.0,0.29919]
[1735569042067,0.29917,3348.4,3348.1,1.3349]
[1735569042260,3.2078,3348.5,3348.4,0.29916]
[1735569042461,0.29911,3349.0,3348.3,0.74793]
[1735569042668,3.2078,3349.1,3349.0,0.29911]
[1735569042867,3.5069,3349.1,3349.0,18.9]
[1735569043068,0.29911,3349.0,3348.5,0.29915]
[1735569043268,0.29911,3349.0,3348.3,0.29917]
[1735569043269,0.29915,3348.5,3348.3,0.29917]
[1735569043567,0.29917,3348.3,3348.2,1.2736]
[1735569043774,0.29917,3348.4,3348.2,1.57277]
[1735569044068,0.29917,3348.3,3348.2,1.2736]
[1735569044264,0.29918,3348.2,3348.1,1.3349]
[1735569044468,0.29919,3348.1,3347.5,3.50703]
[1735569044967,3.50698,3348.2,3348.1,0.29919]
[1735569045175,0.29918,3348.2,3348.1,0.29918]
[1735569045367,0.29918,3348.2,3347.5,3.95591]
[1735569045368,1.2892,3348.5,3347.5,3.95591]
[1735569045560,0.29917,3348.4,3348.3,0.29917]
[1735569045767,3.2078,3349.1,3348.3,3.2078]
[1735569045963,3.2078,3349.1,3349.0,0.2991]
[1735569046167,3.2078,3349.1,3348.4,3.8171]
[1735569046569,3.5069,3349.1,3349.0,0.29911]
[1735569046770,3.2078,3349.1,3348.9,0.29911]
[1735569046969,0.29911,3349.0,3348.9,0.29911]
[1735569047165,3.2078,3349.1,3348.4,3.8171]
[1735569047568,3.2078,3349.1,3348.5,18.9]
[1735569047770,0.29915,3348.5,3348.4,3.8171]
[1735569047971,0.29915,3348.6,3348.4,4.11625]
[1735569048273,3.2078,3348.7,3348.4,2.86365]
[1735569048470,3.2078,3348.7,3348.4,1.2552]
[1735569048471,0.29915,3348.5,3348.4,1.2552]
[1735569048774,3.2078,3348.7,3348.0,1.2552]
[1735569048971,3.2078,3348.7,3348.0,4.463]
[1735569049174,3.2078,3348.7,3348.0,1.2552]
[1735569049367,3.50699,3348.1,3348.0,1.2552]
[1735569049564,3.2078,3348.1,3347.7,2.5295]
[1735569049765,0.29921,3347.9,3347.7,2.5295]
[1735569049972,0.29921,3347.8,3347.7,1.3093]
[1735569050376,0.29921,3347.8,3347.5,1.2949]
[1735569050377,0.29923,3347.6,3347.5,1.2949]
[1735569051281,3.2078,3347.6,3347.5,1.2949]
[1735569051466,3.2078,3347.6,3347.5,1.59414]
[1735569051778,2.26839396,3348.1,3347.5,1.2949]
[1735569051978,3.2078,3348.2,3347.5,1.2949]
[1735569052371,3.50698,3348.2,3348.1,0.29919]
[1735569053474,3.2078,3348.2,3348.1,0.29919]
[1735569053869,3.2078,3348.2,3347.6,0.74808]
[1735569054065,3.2078,3348.2,3348.0,0.29919]
[1735569054066,0.29919,3348.1,3348.0,0.29919]
[1735569054475,3.2078,3348.2,3347.5,3.2078]
[1735569054773,0.29921,3347.9,3347.8,0.2992]
[1735569054974,3.2078,3348.2,3347.5,3.2078]
[1735569055177,3.2078,3348.2,3348.1,0.29919]
[1735569055479,0.29918,3348.3,3347.9,0.29921]
[1735569055668,0.29918,3348.2,3348.1,0.29918]
[1735569055870,0.29919,3348.1,3348.0,1.55729]
[1735569056070,0.29923,3347.6,3347.5,3.50703]
[1735569056467,0.29924,3347.5,3347.4,1.2581]
[1735569056672,0.29924,3347.5,3346.8,1.2642]
[1735569056673,0.29929,3346.9,3346.8,1.2642]
[1735569056878,0.29929,3346.9,3346.2,3.95619]
[1735569056879,0.29931,3346.8,3346.7,0.29931]
[1735569057074,0.29931,3346.8,3346.3,1.2581]
[1735569057075,0.2993,3346.9,3346.8,0.29929]
[1735569057281,0.29929,3347.0,3346.9,0.29929]
[1735569057471,0.2993,3346.9,3346.8,0.2993]
[1735569057774,0.29932,3346.6,3346.5,0.29932]
[1735569057981,0.29934,3346.5,3346.4,0.29934]
[1735569058176,3.2078,3346.7,3346.2,3.2078]
[1735569058372,3.2078,3346.7,3346.6,0.29932]
[1735569058674,3.2078,3346.7,3346.2,3.2078]
[1735569058878,0.29932,3346.6,3346.3,0.29934]
[1735569059080,3.2078,3346.7,3346.2,3.2078]
[1735569059382,0.29935,3346.3,3346.2,3.50715]
[1735569059673,0.29937,3346.1,3346.0,0.29937]
[1735569059870,3.2078,3346.3,3345.6,1.3387]
[1735569060071,3.2078,3346.3,3346.1,0.29936]
[1735569060271,0.29938,3346.0,3345.6,1.3387]
[1735569060471,0.2994,3345.8,3345.6,1.3387]
[1735569060782,0.29941,3345.6,3345.5,19.19942]
[1735569060970,0.29941,3345.6,3345.5,18.9]
[1735569061166,0.29941,3345.6,3345.4,0.29943]
[1735569061167,3.2078,3345.9,3345.4,0.29943]
[1735569061367,0.29943,3345.4,3345.3,0.29943]
[1735569061577,0.74849,3345.8,3345.1,3.2078]
[1735569061777,0.29945,3345.2,3345.1,3.2078]
[1735569062574,3.2078,3345.9,3345.1,3.2078]
[1735569062774,3.2078,3345.9,3345.8,0.29939]
[1735569063376,3.2078,3345.9,3345.2,1.3301]
[1735569063678,0.29941,3345.7,3345.5,0.29941]
[1735569063875,0.29939,3345.8,3345.3,0.29943]
[1735569064074,0.74849,3345.8,3344.6,3.2078]
[1735569064279,0.29947,3345.0,3344.8,0.29947]
[1735569064479,3.50727,3345.0,3344.8,0.29947]
[1735569064777,3.2078,3345.0,3344.9,0.29947]
[1735569065279,3.2078,3345.0,3344.2,3.2078]
[1735569065478,3.5073,3344.6,3344.5,0.2995]
[1735569065675,3.2078,3344.6,3344.5,0.2995]
[1735569067381,3.5073,3344.6,3344.5,0.2995]
[1735569067681,3.2078,3344.6,3344.5,0.29951]
[1735569067878,3.5073,3344.6,3344.5,0.29951]
[1735569068082,3.2078,3344.6,3344.4,0.29952]
[1735569068275,0.29951,3344.5,3344.3,0.29953]
[1735569068579,3.2078,3344.6,3344.5,0.29951]
[1735569068779,3.2078,3344.6,3344.0,0.29955]
[1735569068972,3.2078,3344.6,3343.9,20.2043]
[1735569069372,3.2078,3344.0,3343.2,0.74906]
[1735569069574,0.29958,3343.7,3343.5,0.29959]
[1735569069769,0.29957,3343.9,3343.6,18.9]
[1735569069975,3.2078,3343.7,3343.6,19.19959]
[1735569070378,3.50738,3343.7,3343.6,18.9]
[1735569070681,0.29959,3343.6,3343.4,0.29961]
[1735569070885,0.29959,3343.6,3343.3,0.29961]
[1735569071078,3.2078,3343.7,3343.3,0.29961]
[1735569071378,0.2996,3343.5,3343.3,0.29961]
[1735569071681,0.29959,3343.6,3342.8,20.1626]
[1735569071979,3.2078,3343.7,3342.8,20.91175]
[1735569072181,3.2078,3343.7,3343.6,0.29959]
[1735569072381,3.2078,3344.1,3344.0,0.29955]
[1735569074176,3.2078,3344.1,3343.6,2.587]
[1735569074376,3.2078,3343.7,3343.6,1.59019]
[1735569074775,0.29957,3343.9,3343.6,1.2906]
[1735569074979,0.29958,3343.8,3343.6,0.29959]
[1735569075182,0.29958,3343.8,3343.3,1.2964]
[1735569075183,3.2078,3344.1,3343.3,1.2964]
[1735569075382,3.2078,3344.1,3343.9,0.29956]
[1735569075580,3.2078,3344.1,3344.0,0.29955]
[1735569075778,3.2078,3344.1,3343.3,1.2964]
[1735569075779,3.2078,3344.6,3343.9,3.2078]
[1735569075985,4.4421,3345.2,3344.4,3.2078]
[1735569076188,3.2078,3344.8,3344.7,0.29949]
[1735569076387,3.2078,3344.8,3344.5,1.34]
[1735569076581,3.2078,3344.8,3344.2,3.2078]
[1735569076887,3.2078,3344.8,3344.0,1.3301]
[1735569077088,0.29951,3344.6,3344.3,0.29952]
[1735569077286,0.29951,3344.6,3344.0,1.3301]
[1735569077287,3.2078,3344.8,3344.0,1.3301]
[1735569077483,3.2078,3344.8,3344.7,0.29949]
[1735569078384,3.2078,3345.2,3344.5,3.2078]
[1735569078586,3.2078,3345.6,3344.7,2.91784083]
[1735569078782,0.29939,3345.8,3345.6,0.29941]
[1735569078993,3.2078,3345.8,3345.0,3.2078]
[1735569079293,3.2078,3345.8,3344.8,2.5993]
[1735569079294,0.29941,3345.7,3344.8,2.5993]
[1735569079485,3.2078,3345.4,3344.8,2.5993]
[1735569079788,0.2995,3344.7,3344.5,0.2995]
[1735569080089,0.29949,3344.8,3344.6,0.29949]
[1735569080489,0.29948,3344.9,3344.7,0.29949]
[1735569080988,1.2909,3345.3,3344.7,0.74873]
[1735569081191,3.2078,3345.4,3345.3,0.29944]
[1735569081387,0.29944,3345.3,3345.1,0.29945]
[1735569081691,0.29949,3344.7,3344.6,3.2078]
[1735569081888,2.91784083,3345.1,3344.7,0.29949]
[1735569082086,2.91784083,3345.1,3344.6,3.2078]
[1735569082087,0.29946,3345.0,3344.6,3.2078]
[1735569082288,3.2078,3345.4,3344.6,3.95656]
[1735569082483,3.2078,3345.4,3344.6,3.2078]
[1735569082684,3.2078,3345.4,3345.3,0.29944]
[1735569083093,3.50723,3345.4,3345.2,0.29944]
[1735569083392,3.2078,3345.4,3344.9,2.6127]
[1735569083691,3.2078,3345.4,3345.3,0.29944]
[1735569085093,3.50719,3345.8,3345.6,0.2994]
[1735569085290,4.83586,3346.2,3346.0,0.29937]
[1735569085492,3.2078,3346.2,3346.1,0.29937]
[1735569085890,0.8116,3346.3,3345.8,3.2078]
[1735569086091,0.8116,3346.3,3346.2,0.29936]
[1735569086690,0.8116,3346.3,3345.9,1.22]
[1735569086691,0.29937,3346.0,3345.9,1.22]
[1735569087000,0.29937,3346.0,3344.3,3.2078]
[1735569087001,0.74849,3345.8,3344.3,3.2078]
[1735569087291,0.29945,3345.1,3344.7,0.29949]
[1735569087492,0.29948,3344.9,3344.7,0.29949]
[1735569087793,3.2078,3344.8,3344.4,2.4301]
[1735569087985,0.2995,3344.7,3344.5,0.2995]
[1735569088191,3.50729,3344.8,3344.7,0.29949]
[1735569088489,3.2078,3344.8,3344.4,2.4301]
[1735569088995,3.2078,3344.8,3344.7,0.29949]
[1735569089494,0.2995,3344.7,3344.5,0.2995]
[1735569089696,0.29949,3344.7,3344.4,2.4301]
[1735569089898,3.2078,3344.8,3344.7,0.29949]
[1735569090800,0.29949,3344.7,3344.6,0.2995]
[1735569091095,3.2078,3344.8,3344.4,2.4301]
[1735569091096,3.2078,3344.8,3344.7,0.29949]
[1735569091693,3.2078,3344.8,3344.3,3.2078]
[1735569091995,3.2078,3344.8,3344.2,0.29953]
[1735569091996,0.29953,3344.3,3344.2,0.29953]
[1735569092996,0.29954,3344.2,3344.1,0.29954]
[1735569093195,3.2078,3344.4,3343.9,3.2078]
[1735569093794,0.29954,3344.2,3344.1,0.29954]
[1735569094093,3.2078,3344.8,3344.7,0.29948]
[1735569094694,3.2078,3344.8,3344.7,19.19948]
[1735569094899,1.3189,3345.4,3345.1,0.29945]
[1735569094900,3.2078,3345.3,3345.1,0.29945]
[1735569095096,3.2078,3345.3,3345.2,0.29945]
[1735569095595,0.29942,3345.5,3344.9,3.2078]
[1735569095797,3.2078,3345.7,3345.6,0.29941]
[1735569096292,3.2078,3345.7,3345.0,1.3426]
[1735569096293,3.2078,3346.1,3346.0,0.29937]
[1735569096496,0.8116,3346.3,3345.9,3.2078]
[1735569096798,0.29937,3346.1,3345.9,3.50718]
[1735569097002,0.29937,3346.1,3345.4,3.2078]
[1735569097003,3.2078,3346.0,3345.4,3.2078]
[1735569097299,3.2078,3346.0,3344.7,0.74872]
[1735569097300,3.2078,3345.5,3344.5,3.2078]
[1735569097499,3.50726,3345.1,3344.9,0.29947]
[1735569097693,3.50726,3345.1,3344.6,2.5336]
[1735569097694,0.29948,3344.9,3344.6,2.5336]
[1735569097900,0.29949,3344.7,3344.6,1.2908]
[1735569098101,1.3198,3345.0,3344.6,1.2908]
[1735569098298,1.3198,3345.0,3344.6,1.59029]
[1735569098504,3.2078,3344.7,3344.2,1.2428]
[1735569098799,3.2078,3344.7,3344.2,2.5336]
[1735569099007,0.29953,3344.3,3344.2,1.2908]
[1735569099491,3.50733,3344.3,3344.2,1.2908]
[1735569099694,3.2078,3344.3,3344.2,1.59034]
[1735569100803,3.2078,3344.8,3344.2,4.4986]
[1735569101302,0.29949,3344.7,3344.6,0.2995]
[1735569101599,3.2078,3344.8,3344.7,0.29949]
[1735569102208,3.2078,3344.8,3344.2,3.2078]
[1735569102412,3.2078,3344.8,3344.5,0.2995]
[1735569103106,0.29951,3344.5,3344.4,0.29951]
[1735569103606,3.2078,3344.8,3344.2,3.2078]
[1735569103806,0.29951,3344.5,3344.4,0.29951]
[1735569104003,0.29952,3344.4,3344.3,0.29952]
[1735569104207,0.29952,3344.3,3344.2,3.50733]
[1735569104407,0.29952,3344.3,3344.2,0.29953]
[1735569105006,3.2078,3344.4,3344.1,1.2288]
[1735569105217,0.29957,3343.8,3343.7,3.50737]
[1735569105403,0.29959,3343.6,3343.5,6.98101012]
[1735569106207,1.276,3343.6,3343.2,0.29962]
[1735569106410,3.2078,3343.4,3343.2,0.29962]
[1735569106711,3.2078,3343.4,3342.8,20.129]
[1735569106712,0.29961,3343.3,3342.8,1.52865]
[1735569107005,2.91784083,3343.3,3342.9,0.29965]
[1735569107202,0.29964,3343.1,3342.6,6.98101012]
[1735569107401,2.91784083,3343.3,3342.6,6.98101012]
[1735569107606,3.50747,3342.7,3342.6,6.98101012]
[1735569107802,3.50747,3342.7,3342.6,6.37564281]
[1735569108009,0.2997,3342.4,3341.8,10.51755888]
[1735569108209,3.2078,3342.3,3341.8,10.51755888]
[1735569108407,3.2078,3342.3,3342.1,0.29972]
[1735569108607,3.2078,3342.3,3342.2,0.29971]
[1735569109208,3.2078,3342.7,3342.5,0.29968]
[1735569109409,3.2078,3342.7,3342.6,0.29968]
[1735569110106,5.52713615,3343.4,3342.6,3.2078]
[1735569110305,5.52713615,3343.4,3343.0,3.2078]
[1735569110506,5.52713615,3343.4,3343.3,0.29962]
[1735569111111,4.5638,3344.0,3343.0,3.2078]
[1735569111308,0.29957,3343.9,3343.6,0.29959]
[1735569111515,0.29957,3343.9,3343.5,0.2996]
[1735569111809,0.29956,3343.9,3343.4,0.29961]
[1735569112108,0.29956,3343.9,3342.7,3.17617]
[1735569112109,3.2078,3343.6,3342.7,2.427]
[1735569112507,0.29962,3343.3,3342.7,2.427]
[1735569112708,0.29961,3343.4,3343.1,0.29963]
[1735569113010,3.2078,3343.6,3343.0,3.2078]
[1735569113205,3.2078,3343.6,3343.5,0.2996]
[1735569113603,0.29966,3342.9,3342.7,2.427]
[1735569113914,3.2078,3342.8,3342.0,3.2078]
[1735569114107,4.4893,3342.8,3342.1,2.5338]
[1735569114414,0.29968,3342.6,3342.3,0.2997]
[1735569114716,0.29971,3342.3,3342.1,2.5338]
[1735569115204,0.29971,3342.3,3341.9,9.31285888]
[1735569115205,4.4893,3342.8,3341.9,0.29974]
[1735569115405,0.29971,3342.3,3342.0,0.29973]
[1735569115607,2.91784083,3342.5,3341.6,4.4214]
[1735569115804,0.29969,3342.6,3342.3,0.2997]
[1735569116105,0.29969,3342.5,3341.7,0.7494]
[1735569116305,0.29969,3342.6,3342.3,0.2997]
[1735569116508,0.29969,3342.5,3342.3,0.2997]
[1735569116908,4.4893,3342.8,3341.8,0.74938]
[1735569117105,4.4893,3342.8,3342.0,3.2078]
[1735569117410,3.50747,3342.8,3342.5,0.29968]
[1735569117605,0.29967,3342.7,3342.0,3.2078]
[1735569117807,8.2078,3342.8,3342.0,3.2078]
[1735569118116,3.2078,3342.8,3342.0,3.2078]
[1735569118505,0.29967,3342.7,3342.1,0.29972]
[1735569118705,3.2078,3342.8,3342.0,3.2078]
[1735569118706,0.2997,3342.4,3342.0,3.50753]
[1735569119108,0.2997,3342.4,3342.1,0.29972]
[1735569119511,0.29971,3342.3,3342.1,0.29972]
[1735569119711,3.2078,3342.8,3342.0,3.2078]
[1735569120009,3.2078,3342.8,3342.1,1.3249]
[1735569120317,0.29974,3342.0,3341.6,4.4687]
[1735569120517,0.29974,3342.0,3341.8,0.29975]
[1735569120817,0.29971,3342.3,3341.6,3.2078]
[1735569121118,0.29973,3342.1,3341.9,0.29974]
[1735569121319,0.29975,3341.9,3341.7,0.29976]
[1735569121514,0.29977,3341.6,3341.5,1.3202]
[1735569121722,0.29977,3341.6,3340.3,14.55891443]
[1735569121723,6.12564083,3341.6,3341.0,0.29982]